bitfinex/quotes_SOLUSD_20251119
["timestamp","ask_amount","ask_price","bid_price","bid_amount"]
[1763526431440,9.33539607,140.11,140.07,0.68]
[1763526431441,0.2,140.11,140.07,0.68]
[1763526431629,9.33539607,140.11,140.07,0.68]
[1763526431823,9.13539607,140.1,140.07,0.68]
[1763526432043,9.13539607,140.09,140.07,0.68]
[1763526432847,9.13539607,140.09,140.08,4.26]
[1763526433236,9.13539607,140.09,140.08,4.98]
[1763526434129,9.85539607,140.09,140.01,9.13539607]
[1763526434345,9.13539607,140.05,140.02,0.72]
[1763526434656,9.13539607,140.04,140.03,4.26]
[1763526435147,9.13539607,140.04,140.03,4.98]
[1763526435320,18.12096,140.1,140.03,4.98]
[1763526435523,9.13539607,140.07,140.04,0.72]
[1763526437649,0.2,140.11,140.05,9.13539607]
[1763526437949,9.33539607,140.11,140.06,4.26]
[1763526438122,9.13539607,140.1,140.06,4.98]
[1763526438323,9.13539607,140.1,140.07,0.72]
[1763526438725,0.2,140.11,140.07,0.72]
[1763526438938,9.33539607,140.11,140.07,0.72]
[1763526441028,9.13539607,140.1,140.07,0.72]
[1763526441633,9.33539607,140.11,140.07,0.72]
[1763526442444,9.13539607,140.1,140.07,0.72]
[1763526442758,9.33539607,140.11,140.07,0.72]
[1763526443058,5.65212989,140.11,140.07,0.72]
[1763526444158,0.2,140.11,140.07,6.17212989]
[1763526444651,0.2,140.11,140.08,0.71]
[1763526444839,0.2,140.11,140.09,4.26]
[1763526445257,0.2,140.11,140.1,0.71]
[1763526446161,0.2,140.11,140.09,4.26]
[1763526446668,5.65212989,140.11,140.09,4.26]
[1763526446865,5.65212989,140.11,140.09,4.97]
[1763526448049,5.65212989,140.11,140.1,0.71]
[1763526449372,6.31212989,140.11,140.06,61.8]
[1763526449559,6.31212989,140.11,140.03,5.45212989]
[1763526449560,5.45212989,140.07,140.05,4.26]
[1763526449868,5.45212989,140.06,140.05,4.26]
[1763526450585,5.45212989,140.07,140.05,4.26]
[1763526451568,5.45212989,140.07,140.06,0.71]
[1763526451771,9.78882769,140.1,140.06,0.71]
[1763526451772,5.45212989,140.08,140.06,0.71]
[1763526452270,5.45212989,140.09,140.06,0.71]
[1763526452872,5.45212989,140.08,140.06,0.71]
[1763526453986,5.45212989,140.1,140.06,0.71]
[1763526454279,0.2,140.11,140.06,6.16212989]
[1763526454454,5.65212989,140.11,140.06,6.16212989]
[1763526454661,5.65212989,140.11,140.07,0.71]
[1763526454971,5.45212989,140.1,140.08,4.26]
[1763526455352,0.2,140.11,140.05,62.51]
[1763526455353,6.11212989,140.09,140.05,62.51]
[1763526455685,5.45212989,140.08,140.06,4.26]
[1763526456051,5.45212989,140.07,140.06,4.26]
[1763526456461,0.66,140.1,140.06,4.26]
[1763526456665,5.45212989,140.08,140.06,4.26]
[1763526456873,0.66,140.1,140.06,4.26]
[1763526457056,5.45212989,140.08,140.06,4.26]
[1763526457383,5.45212989,140.07,140.06,4.26]
[1763526458682,5.45212989,140.07,140.04,0.71]
[1763526458973,5.45212989,140.07,140.05,4.26]
[1763526459155,5.45212989,140.08,140.05,4.26]
[1763526459474,5.45212989,140.08,140.05,4.97]
[1763526461452,5.45212989,140.08,140.06,0.71]
[1763526463285,5.45212989,140.07,140.05,4.26]
[1763526463783,5.45212989,140.07,140.05,4.93]
[1763526464768,2.09481042,140.07,140.05,4.93]
[1763526467384,4.98203711,140.11,140.06,0.67]
[1763526467385,2.09481042,140.08,140.06,0.67]
[1763526467686,2.09481042,140.09,140.06,0.67]
[1763526471402,0.2,140.11,140.06,2.76481042]
[1763526471561,2.09481042,140.09,140.06,0.67]
[1763526471768,2.09481042,140.09,140.07,0.67]
[1763526471989,2.09481042,140.09,140.08,4.26]
[1763526473695,12.54363811,140.09,140.05,61.8]
[1763526473991,10.44882769,140.09,140.07,4.26]
[1763526475197,2.09481042,140.08,140.07,4.26]
[1763526475703,2.09481042,140.1,140.07,4.93]
[1763526475897,2.29481042,140.11,140.08,0.67]
[1763526476201,0.2,140.11,140.08,0.67]
[1763526477391,2.09481042,140.09,140.08,4.26]
[1763526477991,27.90978769,140.08,140.03,10.64882769]
[1763526478198,2.09481042,140.04,140.03,4.26]
[1763526481389,10.44882769,140.07,140.03,4.26]
[1763526481634,2.09481042,140.04,140.03,4.26]
[1763526482687,2.09481042,140.04,139.97,9.78882769]
[1763526482886,2.09481042,140.02,139.98,4.93]
[1763526483086,2.09481042,140.03,139.98,4.93]
[1763526483301,2.09481042,140.0,139.96,0.67]
[1763526483506,2.09481042,139.98,139.97,4.26]
[1763526484302,2.09481042,139.99,139.97,4.26]
[1763526486820,2.09481042,140.01,139.98,0.67]
[1763526487712,30.00459811,140.02,139.98,0.67]
[1763526488712,2.09481042,140.03,139.98,0.67]
[1763526489718,2.09481042,140.02,139.98,0.67]
[1763526490698,11.88363811,140.03,139.98,0.67]
[1763526492301,12.54363811,140.03,139.98,0.67]
[1763526492607,11.88363811,140.03,139.98,0.67]
[1763526497232,12.56363811,140.03,139.98,0.67]
[1763526498030,18.12096,140.05,139.98,0.67]
[1763526498031,18.12096,140.05,139.99,2.09481042]
[1763526498230,2.77481042,140.06,140.0,6.35481042]
[1763526498616,2.77481042,140.06,140.01,0.66]
[1763526500011,0.68,140.06,140.01,0.66]
[1763526500412,2.77481042,140.06,140.01,0.66]
[1763526502138,2.09481042,140.06,140.01,0.66]
[1763526502313,2.09481042,140.07,140.01,2.75481042]
[1763526502811,3.27373148,140.07,140.02,0.68]
[1763526503006,13.75255917,140.08,140.03,4.26]
[1763526503214,13.06255917,140.08,140.03,4.26]
[1763526503415,13.06255917,140.08,140.04,0.68]
[1763526503642,13.75255917,140.08,140.04,0.68]
[1763526503820,0.69,140.07,140.03,4.94]
[1763526504021,13.75255917,140.08,140.04,0.68]
[1763526504233,0.69,140.07,140.04,0.68]
[1763526506041,13.75255917,140.08,140.04,0.68]
[1763526506616,9.78882769,140.08,140.04,0.68]
[1763526507039,10.47882769,140.08,140.04,0.68]
[1763526507261,22.08469148,140.09,140.04,0.68]
[1763526507753,13.06255917,140.1,140.04,3.95373148]
[1763526507917,19.01096,140.11,140.05,3.27373148]
[1763526507918,3.47373148,140.11,140.05,3.27373148]
[1763526508253,0.2,140.11,140.06,7.53373148]
[1763526508424,4.16373148,140.11,140.07,0.68]
[1763526509645,3.27373148,140.1,140.07,0.68]
[1763526510222,4.16373148,140.11,140.07,0.68]
[1763526511128,3.27373148,140.1,140.07,0.68]
[1763526511742,3.96373148,140.1,140.06,4.26]
[1763526511939,3.27373148,140.1,140.07,0.68]
[1763526513160,0.2,140.11,140.07,0.68]
[1763526513344,3.47373148,140.11,140.07,0.68]
[1763526513544,4.16373148,140.11,140.07,0.68]
[1763526514558,10.47882769,140.1,140.03,11.15882769]
[1763526514859,3.27373148,140.08,140.04,0.68]
[1763526515262,3.96373148,140.08,140.04,0.68]
[1763526520164,9.78882769,140.09,140.03,4.26]
[1763526520165,3.27373148,140.06,140.03,4.26]
[1763526520370,3.27373148,140.05,140.03,4.26]
[1763526520867,13.75255917,140.06,140.03,4.26]
[1763526521246,9.78882769,140.06,140.04,0.68]
[1763526521672,9.78882769,140.06,140.03,4.94]
[1763526521874,3.27373148,140.07,140.03,4.94]
[1763526522063,21.39469148,140.08,140.04,0.68]
[1763526522379,0.69,140.07,140.03,4.94]
[1763526522886,3.27373148,140.07,140.04,0.69]
[1763526526076,3.27373148,140.07,140.03,4.26]
[1763526526266,3.27373148,140.05,140.01,0.69]
[1763526526452,3.27373148,140.04,140.02,4.26]
[1763526526866,3.93373148,140.04,140.02,4.26]
[1763526528391,3.27373148,140.04,140.02,4.26]
[1763526528579,9.78882769,140.04,140.02,4.26]
[1763526529077,13.72255917,140.04,140.02,4.26]
[1763526531986,3.93373148,140.03,139.98,0.69]
[1763526532297,3.27373148,140.02,139.99,4.26]
[1763526532591,3.93373148,140.03,139.99,4.95]
[1763526535495,3.27373148,140.0,139.96,0.69]
[1763526535793,3.27373148,140.0,139.97,4.26]
[1763526536010,3.27373148,140.0,139.97,4.95]
[1763526539796,3.27373148,140.01,139.98,0.69]
[1763526539976,13.06255917,140.01,139.98,0.69]
[1763526540380,13.72255917,140.01,139.98,0.69]
[1763526540605,13.06255917,140.01,139.98,0.69]
[1763526540793,13.72255917,140.01,139.98,0.69]
[1763526541098,9.78882769,140.0,139.97,4.95]
[1763526541303,3.93373148,140.01,139.97,4.95]
[1763526542187,3.27373148,140.01,139.98,0.69]
[1763526542386,9.78882769,140.02,139.98,0.69]
[1763526542905,27.90978769,140.02,139.97,7.53373148]
[1763526543206,0.66,140.01,139.97,8.22373148]
[1763526545911,0.66,140.01,139.97,4.26]
[1763526546208,21.39469148,139.99,139.93,24.2663169]
[1763526546380,3.27373148,139.98,139.94,4.26]
[1763526546578,0.66,139.97,139.94,4.26]
[1763526546799,3.27373148,139.98,139.94,4.95]
[1763526546997,3.93373148,139.98,139.94,4.95]
[1763526547202,0.66,139.98,139.94,4.95]
[1763526547508,3.93373148,140.02,139.97,3.27373148]
[1763526547708,27.90978769,140.01,139.98,4.26]
[1763526547914,28.56978769,140.01,139.98,4.26]
[1763526548085,27.90978769,140.01,139.98,4.95]
[1763526548395,0.66,140.01,139.98,4.95]
[1763526548601,18.12096,140.0,139.98,4.26]
[1763526550013,10.44882769,139.99,139.95,21.39469148]
[1763526550214,31.84351917,139.99,139.96,4.26]
[1763526551218,18.12096,139.99,139.96,4.95]
[1763526552014,3.93373148,139.98,139.96,4.26]
[1763526552887,21.39469148,139.99,139.96,4.26]
[1763526553100,0.69,139.98,139.96,4.26]
[1763526553315,22.08469148,139.99,139.96,4.26]
[1763526553902,18.81096,139.99,139.96,4.26]
[1763526554612,18.81096,139.99,139.96,4.98]
[1763526554996,18.81096,139.99,139.96,4.26]
[1763526556212,18.81096,139.99,139.96,4.98]
[1763526556607,18.81096,139.99,139.96,4.26]
[1763526556811,18.12096,139.99,139.96,4.98]
[1763526557016,18.81096,139.99,139.96,4.26]
[1763526557526,18.12096,139.99,139.97,0.72]
[1763526559123,3.27373148,140.02,139.97,0.72]
[1763526559425,0.69,140.01,139.97,0.72]
[1763526559621,22.08469148,140.02,139.97,0.72]
[1763526560209,18.12096,140.0,139.97,0.72]
[1763526562918,18.12096,140.0,139.97,2.81656683]
[1763526563112,2.78656683,140.02,139.98,0.67]
[1763526563425,20.90752683,140.02,139.99,4.26]
[1763526563608,20.21752683,140.02,139.99,4.26]
[1763526563813,4.26,140.05,139.99,4.26]
[1763526563814,2.79656683,140.05,140.0,0.67]
[1763526564021,2.79656683,140.05,140.0,2.76656683]
[1763526564204,0.7,140.05,140.0,2.76656683]
[1763526564410,20.21752683,140.03,139.99,12.99201266]
[1763526564815,20.91752683,140.03,139.99,4.93]
[1763526565712,20.91752683,140.03,140.0,0.67]
[1763526565899,20.91752683,140.03,139.99,4.26]
[1763526566104,18.82096,140.03,140.0,0.67]
[1763526566326,20.91752683,140.03,140.0,0.67]
[1763526566527,20.91752683,140.03,139.99,4.93]
[1763526567326,20.91752683,140.03,139.99,4.26]
[1763526567533,20.91752683,140.03,140.0,0.67]
[1763526567828,0.7,140.02,139.99,4.26]
[1763526568030,2.79656683,140.02,139.99,4.26]
[1763526570119,30.00635452,140.03,139.99,4.26]
[1763526570309,28.60978769,140.03,139.99,4.93]
[1763526570514,30.70635452,140.03,139.99,4.93]
[1763526571939,28.60978769,140.03,139.99,4.93]
[1763526572238,4.98,140.05,140.0,0.71]
[1763526572430,18.12096,140.04,140.0,0.71]
[1763526572741,18.12096,140.04,140.0,2.80656683]
[1763526572943,18.12096,140.04,140.01,0.71]
[1763526573442,9.78882769,140.06,140.02,6.35656683]
[1763526573643,27.90978769,140.06,140.02,6.35656683]
[1763526573827,9.78882769,140.06,140.03,0.71]
[1763526574531,9.78882769,140.06,140.03,2.80656683]
[1763526574917,0.72,140.09,140.04,0.71]
[1763526575122,9.78882769,140.08,140.05,4.26]
[1763526575453,18.12096,140.07,140.05,4.26]
[1763526575617,18.12096,140.06,140.05,4.97]
[1763526575818,18.12096,140.06,140.05,4.26]
[1763526576138,18.84096,140.06,140.05,4.26]
[1763526576331,20.93752683,140.06,140.05,4.26]
[1763526576943,2.81656683,140.06,140.03,4.26]
[1763526577548,18.12096,140.05,140.03,4.26]
[1763526578536,2.09656683,140.06,140.03,4.26]
[1763526578745,20.93752683,140.05,140.03,4.26]
[1763526579431,18.84096,140.05,140.03,4.26]
[1763526579625,2.09656683,140.06,140.03,4.26]
[1763526579838,28.62978769,140.05,140.03,4.26]
[1763526580440,27.90978769,140.05,140.03,4.26]
[1763526583526,28.58978769,140.05,140.03,4.26]
[1763526584175,0.68,140.04,139.99,61.8]
[1763526584327,2.09656683,140.01,139.98,4.95]
[1763526584855,2.77656683,140.01,139.98,4.95]
[1763526585227,2.09656683,140.0,139.98,4.26]
[1763526585427,2.77656683,140.01,139.98,4.26]
[1763526585630,2.09656683,139.99,139.98,4.26]
[1763526585829,11.88539452,139.99,139.95,0.69]
[1763526586171,12.56539452,139.99,139.96,4.26]
[1763526586664,12.56539452,139.99,139.96,4.95]
[1763526587252,11.88539452,139.99,139.96,4.95]
[1763526589663,12.56539452,139.99,139.96,4.95]
[1763526590160,0.68,139.98,139.96,4.26]
[1763526590529,11.88539452,139.99,139.96,4.95]
[1763526590729,12.56539452,139.99,139.96,4.26]
[1763526590934,2.09656683,139.97,139.93,0.69]
[1763526591163,20.21752683,139.96,139.94,4.26]
[1763526592232,9.78882769,139.95,139.91,0.69]
[1763526592455,11.88539452,139.95,139.91,0.69]
[1763526592665,12.56539452,139.95,139.92,4.26]
[1763526593751,11.88539452,139.95,139.92,4.95]
[1763526594337,9.78882769,139.95,139.92,4.95]
[1763526594934,10.46882769,139.95,139.92,4.95]
[1763526595355,9.78882769,139.95,139.92,4.26]
[1763526595559,10.46882769,139.95,139.92,4.95]
[1763526595946,9.78882769,139.95,139.92,4.95]
[1763526596146,9.78882769,139.95,139.92,4.26]
[1763526596341,2.09656683,139.97,139.93,0.69]
[1763526596542,9.78882769,139.96,139.93,2.78656683]
[1763526596744,9.78882769,139.96,139.93,0.69]
[1763526598164,2.09656683,139.97,139.93,0.69]
[1763526598353,20.21752683,139.97,139.93,0.69]
[1763526598556,18.12096,139.97,139.93,2.78656683]
[1763526598748,18.12096,139.97,139.94,0.69]
[1763526600763,2.09656683,140.0,139.94,2.78656683]
[1763526600954,2.09656683,140.0,139.95,2.09656683]
[1763526601149,9.78882769,140.0,139.96,6.35656683]
[1763526601441,2.77656683,139.99,139.96,4.95]
[1763526601667,20.89752683,139.99,139.96,4.95]
[1763526602171,20.21752683,139.99,139.96,4.95]
[1763526602367,12.56539452,139.98,139.96,4.26]
[1763526602569,12.56539452,139.98,139.91,8.38626732]
[1763526602570,20.21752683,139.97,139.91,0.69]
[1763526602747,20.21752683,139.97,139.91,4.95]
[1763526602748,2.09656683,139.95,139.91,4.95]
[1763526603071,30.00635452,139.96,139.91,7.04656683]
[1763526603255,30.00635452,139.96,139.92,0.69]
[1763526603451,18.12096,139.98,139.93,2.09656683]
[1763526603674,20.21752683,139.98,139.92,0.69]
[1763526603858,18.12096,139.98,139.94,2.09656683]
[1763526604362,18.12096,139.98,139.95,0.69]
[1763526606350,18.12096,139.98,139.94,2.09656683]
[1763526606351,20.89752683,139.98,139.94,0.69]
[1763526607272,20.89752683,139.98,139.95,4.26]
[1763526607569,2.09656683,139.96,139.91,4.95]
[1763526607771,2.09656683,139.96,139.91,7.04656683]
[1763526607953,2.77656683,139.96,139.92,0.69]
[1763526608151,11.88539452,139.97,139.92,0.69]
[1763526608354,12.56539452,139.97,139.92,2.78656683]
[1763526608554,12.56539452,139.97,139.93,0.69]
[1763526612177,30.00635452,139.95,139.91,4.26]
[1763526612385,2.09656683,139.94,139.9,4.92]
[1763526612754,0.65,139.93,139.9,4.26]
[1763526613155,30.65635452,139.95,139.9,4.92]
[1763526613381,0.65,139.94,139.9,4.26]
[1763526613570,0.65,139.94,139.91,0.66]
[1763526614681,0.65,139.94,139.9,4.92]
[1763526614979,0.65,139.94,139.91,0.66]
[1763526615489,2.74656683,139.94,139.9,4.26]
[1763526615779,2.74656683,139.94,139.9,4.92]
[1763526617410,18.12096,139.92,139.9,4.92]
[1763526617715,9.78882769,139.93,139.84,24.41066049]
[1763526617716,9.78882769,139.89,139.85,0.66]
[1763526617874,9.78882769,139.89,139.86,0.66]
[1763526619372,9.78882769,139.92,139.88,2.09656683]
[1763526619771,18.12096,139.9,139.89,0.66]
[1763526620184,9.78882769,139.92,139.89,0.66]
[1763526622790,9.78882769,139.92,139.89,0.72]
[1763526622991,21.4013148,139.93,139.89,0.72]
[1763526622992,18.12096,139.93,139.9,3.2803548]
[1763526623400,18.83096,139.93,139.89,0.72]
[1763526623597,9.78882769,139.92,139.89,0.72]
[1763526623800,10.49882769,139.92,139.87,65.8003548]
[1763526624110,10.49882769,139.92,139.84,0.72]
[1763526624111,9.78882769,139.88,139.84,0.72]
[1763526624412,13.06918249,139.88,139.84,0.72]
[1763526624618,13.06918249,139.86,139.83,4.26]
[1763526625005,13.77918249,139.86,139.83,4.26]
[1763526625303,31.90014249,139.86,139.83,4.26]
[1763526625694,9.78882769,139.84,139.81,0.1]
[1763526625900,9.78882769,139.84,139.81,0.82]
[1763526626209,13.77918249,139.84,139.81,0.1]
[1763526627098,31.19014249,139.82,139.81,0.1]
[1763526627490,31.90014249,139.82,139.81,0.1]
[1763526628396,36.16014249,139.82,139.81,0.1]
[1763526628593,27.90978769,139.82,139.81,0.1]
[1763526628910,31.90014249,139.82,139.81,0.1]
[1763526629114,28.61978769,139.82,139.81,0.1]
[1763526629298,13.77918249,139.82,139.81,0.1]
[1763526631092,19.30146811,139.82,139.81,0.1]
[1763526631398,13.77918249,139.82,139.81,0.1]
[1763526632832,18.03918249,139.82,139.81,0.1]
[1763526633502,23.56146811,139.82,139.81,0.1]
[1763526633707,18.03918249,139.82,139.81,0.1]
[1763526634209,22.7772547,139.82,139.81,0.1]
[1763526634527,18.03918249,139.82,139.81,0.1]
[1763526634903,13.77918249,139.82,139.81,0.1]
[1763526635110,18.03918249,139.82,139.81,0.1]
[1763526637135,23.56146811,139.82,139.81,0.1]
[1763526638299,20.28111331,139.82,139.81,0.1]
[1763526638506,23.56146811,139.82,139.81,0.1]
[1763526639208,19.30146811,139.82,139.81,0.1]
[1763526639528,23.56146811,139.82,139.81,0.1]
[1763526639732,23.56146811,139.82,139.77,1.93593088]
[1763526639926,9.78882769,139.78,139.77,1.93593088]
[1763526640229,17.32918249,139.78,139.77,1.93593088]
[1763526640427,18.03918249,139.78,139.77,1.93593088]
[1763526640628,14.75882769,139.78,139.77,1.93593088]
[1763526640830,18.03918249,139.78,139.77,1.93593088]
[1763526641413,17.32918249,139.78,139.77,1.93593088]
[1763526641624,18.03918249,139.78,139.77,1.93593088]
[1763526642616,13.77918249,139.78,139.77,1.93593088]
[1763526642823,20.84877998,139.78,139.77,1.93593088]
[1763526643047,24.12913478,139.78,139.77,1.93593088]
[1763526643525,24.12913478,139.78,139.68,0.67]
[1763526643526,9.78882769,139.7,139.68,0.67]
[1763526643728,13.06918249,139.7,139.68,0.67]
[1763526643912,19.15263478,139.7,139.68,0.67]
[1763526644113,13.06918249,139.7,139.68,0.67]
[1763526644315,18.12096,139.72,139.68,3.9503548]
[1763526644536,18.12096,139.72,139.69,3.2803548]
[1763526644732,18.12096,139.72,139.69,3.9503548]
[1763526644926,18.12096,139.71,139.7,0.67]
[1763526645318,27.90978769,139.71,139.7,0.67]
[1763526646122,4.26,139.73,139.7,0.67]
[1763526646441,18.12096,139.71,139.7,0.67]
[1763526646735,9.78882769,139.7,139.67,0.67]
[1763526646941,13.06918249,139.7,139.67,0.67]
[1763526647621,9.78882769,139.7,139.67,0.67]
[1763526649849,18.12096,139.71,139.67,3.9503548]
[1763526650016,9.78882769,139.72,139.68,3.2803548]
[1763526650214,9.78882769,139.72,139.68,3.9503548]
[1763526650413,9.78882769,139.72,139.69,0.67]
[1763526650617,18.12096,139.71,139.69,0.67]
[1763526650814,9.78882769,139.72,139.69,0.67]
[1763526651215,13.06918249,139.72,139.69,0.67]
[1763526651424,13.06918249,139.72,139.67,0.67]
[1763526651425,9.78882769,139.69,139.67,0.67]
[1763526652926,9.78882769,139.69,139.61,18.12096]
[1763526652927,18.12096,139.61,139.57,0.67]
[1763526653127,4.26,139.65,139.59,3.2803548]
[1763526653327,27.90978769,139.64,139.6,3.2803548]
[1763526653836,27.90978769,139.64,139.61,0.67]
[1763526654156,9.78882769,139.66,139.61,0.67]
[1763526654320,7.5403548,139.67,139.62,3.2803548]
[1763526654518,18.12096,139.66,139.62,3.2803548]
[1763526654720,17.32918249,139.69,139.64,3.2803548]
[1763526654920,7.5403548,139.69,139.65,0.67]
[1763526655546,9.78882769,139.67,139.65,0.67]
[1763526655717,18.73096,139.73,139.65,0.67]
[1763526655916,9.78882769,139.68,139.65,3.9503548]
[1763526656339,9.78882769,139.68,139.66,0.67]
[1763526660324,9.78882769,139.74,139.66,9.8372595]
[1763526660538,9.1672595,139.73,139.67,9.1672595]
[1763526660748,18.12096,139.71,139.68,9.1672595]
[1763526660939,18.95608719,139.74,139.68,9.8372595]
[1763526661245,18.95608719,139.74,139.69,9.8372595]
[1763526661626,18.95608719,139.74,139.7,0.67]
[1763526662365,9.78882769,139.7,139.68,18.95608719]
[1763526662523,18.12096,139.68,139.67,0.67]
[1763526662726,27.90978769,139.68,139.63,4.26]
[1763526662948,37.07704719,139.68,139.64,0.67]
[1763526663156,4.26,139.71,139.64,9.8372595]
[1763526663157,27.2882195,139.69,139.64,9.8372595]
[1763526663360,5.87754662,139.77,139.64,9.8372595]
[1763526663361,5.87754662,139.81,139.71,18.12096]
[1763526663528,0.85,139.91,139.8,9.1672595]
[1763526663844,0.85,139.91,139.9,9.1672595]
[1763526663845,0.2,139.91,139.9,9.1672595]
[1763526664044,0.2,139.91,139.86,18.12096]
[1763526664045,0.2,139.91,139.87,18.12096]
[1763526664244,0.2,139.91,139.9,9.1672595]
[1763526664446,0.2,139.91,139.88,4.28]
[1763526664759,9.1672595,139.9,139.86,4.3]
[1763526664954,0.65,139.89,139.85,13.4672595]
[1763526665350,9.8172595,139.89,139.85,4.3]
[1763526665569,10.43882769,139.88,139.84,13.4672595]
[1763526665942,10.43882769,139.88,139.84,9.1672595]
[1763526666139,9.78882769,139.86,139.84,4.3]
[1763526666944,9.78882769,139.86,139.82,13.4672595]
[1763526667256,9.1672595,139.91,139.85,9.1672595]
[1763526667751,9.1672595,139.9,139.85,9.1672595]
[1763526668639,9.1672595,139.88,139.82,4.3]
[1763526668839,9.1672595,139.88,139.83,9.1672595]
[1763526669056,9.1672595,139.89,139.84,9.1672595]
[1763526669261,9.78882769,139.9,139.85,9.1672595]
[1763526669262,9.1672595,139.9,139.85,9.1672595]
[1763526669556,18.95608719,139.89,139.84,9.1672595]
[1763526669771,9.1672595,139.89,139.84,9.1672595]
[1763526670059,27.2882195,139.9,139.85,9.1672595]
[1763526670445,9.1672595,139.89,139.84,9.1672595]
[1763526670644,18.95608719,139.88,139.85,4.28]
[1763526670848,9.1672595,139.87,139.85,4.28]
[1763526671347,19.60608719,139.88,139.85,4.28]
[1763526672137,19.60608719,139.88,139.76,9.78882769]
[1763526672138,18.12096,139.85,139.74,0.67]
[1763526672341,9.78882769,139.82,139.78,9.1672595]
[1763526672559,4.28,139.85,139.79,9.1672595]
[1763526672857,18.95608719,139.86,139.81,9.1672595]
[1763526673072,9.78882769,139.82,139.75,0.67]
[1763526673258,9.1672595,139.81,139.76,9.1672595]
[1763526673758,9.8872595,139.81,139.75,13.4472595]
[1763526674162,9.8872595,139.81,139.75,4.28]
[1763526674464,4.28,139.84,139.75,4.28]
[1763526674465,27.2882195,139.79,139.75,4.28]
[1763526675263,9.8872595,139.78,139.73,9.1672595]
[1763526675438,9.8872595,139.78,139.73,13.4472595]
[1763526676049,9.8872595,139.77,139.73,4.28]
[1763526676355,9.1672595,139.76,139.73,4.28]
[1763526676863,9.1672595,139.77,139.72,9.1672595]
[1763526677070,9.1672595,139.77,139.72,13.4472595]
[1763526677269,9.8872595,139.77,139.72,13.4472595]
[1763526678947,9.78882769,139.78,139.72,13.4472595]
[1763526679183,18.95608719,139.78,139.73,9.1672595]
[1763526679670,27.2882195,139.79,139.74,9.1672595]
[1763526679978,9.1672595,139.84,139.75,0.67]
[1763526680148,9.1672595,139.84,139.79,9.1672595]
[1763526680468,18.12096,139.83,139.79,9.1672595]
[1763526680669,18.12096,139.82,139.79,9.1672595]
[1763526680974,9.8872595,139.84,139.79,9.1672595]
[1763526681143,9.8872595,139.84,139.78,9.1672595]
[1763526681349,18.12096,139.82,139.78,9.1672595]
[1763526681547,27.2882195,139.82,139.76,4.28]
[1763526681746,9.1672595,139.82,139.76,13.4472595]
[1763526681949,27.2882195,139.82,139.77,4.28]
[1763526682557,27.9882195,139.82,139.77,4.28]
[1763526682763,0.0999,158.5,139.85,9.78882769]
[1763526682764,0.7,139.97,139.85,9.78882769]
[1763526682955,6.16494837,140.0,139.94,5.46494837]
[1763526683152,6.16494837,140.04,139.98,5.46494837]
[1763526683361,4.3,140.03,139.98,5.46494837]
[1763526683663,5.46494837,139.99,139.96,6.16494837]
[1763526683862,5.46494837,139.98,139.93,5.46494837]
[1763526684067,5.46494837,139.99,139.94,5.46494837]
[1763526684459,18.12096,139.98,139.94,5.46494837]
[1763526684787,18.12096,139.98,139.95,5.46494837]
[1763526685153,20.25377606,140.01,139.95,5.46494837]
[1763526685554,18.12096,139.98,139.95,5.46494837]
[1763526686564,0.2,140.05,139.97,5.46494837]
[1763526686768,0.2,140.05,139.94,10.46494837]
[1763526686769,9.78882769,140.03,139.98,5.46494837]
[1763526687073,27.90978769,140.03,139.98,5.46494837]
[1763526687391,0.2,140.05,140.02,5.46494837]
[1763526687688,0.2,140.05,140.0,5.46494837]
[1763526688179,0.9,140.05,140.0,5.46494837]
[1763526688687,10.68882769,140.05,139.98,4.97]